Workbook

Sheet 지방도집계표
A1: 2021년도 도로 교통량 조사 결과 집계표(지방도 및 국가지원지방도)
A2: 노선별 | C2: 2021년 교통량 조사결과 (차종별 6시간) | AC2: 24시간 총조사결과
C3: 시간 | D3: 계 | E3: 1종 (승용) | G3: 2종 (버스) | I3: 3종 (소형트럭) | K3: 4종 (소형트럭) | M3: 5종 (중형트럭) | O3: 6종 (중형트럭) | Q3: 7종 (중형트럭) | S3: 8종 (대형트럭) | U3: 9종 (대형트럭) | W3: 10종 (대형트럭) | Y3: 11종 (대형트럭) | AA3: 12종 (대형트럭) | AC3: 시간 | AD3: 2020년 | AE3: 2021년 | AF3: 증감 | AG3: 증감율
E4: 상행 | F4: 하행 | G4: 상행 | H4: 하행 | I4: 상행 | J4: 하행 | K4: 상행 | L4: 하행 | M4: 상행 | N4: 하행 | O4: 상행 | P4: 하행 | Q4: 상행 | R4: 하행 | S4: 상행 | T4: 하행 | U4: 상행 | V4: 하행 | W4: 상행 | X4: 하행 | Y4: 상행 | Z4: 하행 | AA4: 상행 | AB4: 하행
A5: 합계 (5지점) | C5: 합계 | D5: =SUM(D8,D11,D14,D17,D20) -> 11,222 | E5: 4,430 | F5: 4,360 | G5: 107 | H5: 116 | I5: 706 | J5: 584 | K5: 121 | L5: 107 | M5: 100 | N5: 103 | O5: 234 | P5: 210 | Q5: 21 | R5: 2 | S5: 2 | T5: 0 | U5: 1 | V5: 0 | W5: 5 | X5: 6 | Y5: 0 | Z5: 3 | AA5: 3 | AB5: 1 | AC5: 합계 | AD5: =SUM(AD6:AD7) -> 22,819 | AE5: =SUM(AE6:AE7) -> 25,089 | AF5: =AE5-AD5 -> 2,270 | AG5: =AF5/AD5 -> 9.95%
C6: 주간 | D6: =SUM(D9,D12,D15,D18,D21) -> 4,964 | E6: 1,530 | F6: 2,227 | G6: 62 | H6: 59 | I6: 255 | J6: 345 | K6: 49 | L6: 29 | M6: 60 | N6: 82 | O6: 121 | P6: 122 | Q6: 7 | R6: 2 | S6: 1 | T6: 0 | U6: 1 | V6: 0 | W6: 4 | X6: 6 | Y6: 0 | Z6: 2 | AA6: 0 | AB6: 0 | AC6: 주간 (07~19) | AD6: 18,819 | AE6: =AE9+AE12+AE15+AE18+AE21 -> 21,412 | AF6: =AE6-AD6 -> 2,593
C7: 야간 | D7: =SUM(D10,D13,D16,D19,D22) -> 6,258 | E7: 2,900 | F7: 2,133 | G7: 45 | H7: 57 | I7: 451 | J7: 239 | K7: 72 | L7: 78 | M7: 40 | N7: 21 | O7: 113 | P7: 88 | Q7: 14 | R7: 0 | S7: 1 | T7: 0 | U7: 0 | V7: 0 | W7: 1 | X7: 0 | Y7: 0 | Z7: 1 | AA7: 3 | AB7: 1 | AC7: 야간 (19~07) | AD7: 4,000 | AE7: =AE10+AE13+AE16+AE19+AE22 -> 3,677 | AF7: -323
A8: 22-01 (나진<=>여수) 화련승강장 앞 | C8: 소계 | D8: =SUM(E8:AB8) -> 3,903 | E8: =SUM(E9:E10) -> 1,298 | F8: =SUM(F9:F10) -> 1,546 | G8: 29 | H8: 33 | I8: 341 | J8: 308 | K8: 60 | L8: 28 | M8: 46 | N8: 53 | O8: 78 | P8: 63 | Q8: 11 | R8: 1 | S8: 1 | T8: 0 | U8: 1 | V8: 0 | W8: 4 | X8: 0 | Y8: 0 | Z8: 0 | AA8: 2 | AB8: 0 | AC8: 소계 | AD8: 7,894 | AE8: =SUM(AE9:AE10) -> 8,579 | AF8: 685 | AG8: =AF8/AD8 -> 9%
C9: 08~11 | D9: =SUM(E9:AB9) -> 1,890 | E9: 434 | F9: 912 | G9: 14 | H9: 18 | I9: 136 | J9: 173 | K9: 24 | L9: 19 | M9: 30 | N9: 44 | O9: 41 | P9: 39 | Q9: 1 | R9: 1 | S9: 0 | T9: 0 | U9: 1 | V9: 0 | W9: 3 | X9: 0 | Y9: 0 | Z9: 0 | AA9: 0 | AB9: 0 | AC9: 주간 (07~19) | AD9: 6,829 | AE9: 7,463 | AF9: 634
C10: 15~18 | D10: =SUM(E10:AB10) -> 2,013 | E10: 864 | F10: 634 | G10: 15 | H10: 15 | I10: 205 | J10: 135 | K10: 36 | L10: 9 | M10: 16 | N10: 9 | O10: 37 | P10: 24 | Q10: 10 | R10: 0 | S10: 1 | T10: 0 | U10: 0 | V10: 0 | W10: 1 | X10: 0 | Y10: 0 | Z10: 0 | AA10: 2 | AB10: 0 | AC10: 야간 (19~07) | AD10: 1,065 | AE10: 1,116 | AF10: 51
A11: 22-02 (소라<=>율촌) 소라면사무소 앞 | C11: 소계 | D11: =SUM(E11:AB11) -> 3,802 | E11: =SUM(E12:E13) -> 1,668 | F11: =SUM(F12:F13) -> 1,634 | G11: 46 | H11: 47 | I11: 25 | J11: 44 | K11: 46 | L11: 68 | M11: 23 | N11: 25 | O11: 78 | P11: 76 | Q11: 10 | R11: 1 | S11: 1 | T11: 0 | U11: 0 | V11: 0 | W11: 1 | X11: 6 | Y11: 0 | Z11: 3 | AA11: 0 | AB11: 0 | AC11: 소계 | AD11: 8,407 | AE11: =SUM(AE12:AE13) -> 8,194 | AF11: -213 | AG11: -3%
C12: 08~11 | D12: =SUM(E12:AB12) -> 1,646 | E12: 712 | F12: 679 | G12: 31 | H12: 22 | I12: 11 | J12: 43 | K12: 18 | L12: 1 | M12: 10 | N12: 14 | O12: 44 | P12: 44 | Q12: 6 | R12: 1 | S12: 1 | T12: 0 | U12: 0 | V12: 0 | W12: 1 | X12: 6 | Y12: 0 | Z12: 2 | AA12: 0 | AB12: 0 | AC12: 주간 (07~19) | AD12: 6,807 | AE12: 6,952 | AF12: 145
C13: 15~18 | D13: 2,156 | E13: 956 | F13: 955 | G13: 15 | H13: 25 | I13: 14 | J13: 1 | K13: 28 | L13: 67 | M13: 13 | N13: 11 | O13: 34 | P13: 32 | Q13: 4 | R13: 0 | S13: 0 | T13: 0 | U13: 0 | V13: 0 | W13: 0 | X13: 0 | Y13: 0 | Z13: 1 | AA13: 0 | AB13: 0 | AC13: 야간 (19~07) | AD13: 1,600 | AE13: 1,242 | AF13: -358
A14: 22-03 (장수<=>여수) 원포교차로 앞 | C14: 소계 | D14: =SUM(E14:AB14) -> 2,924 | E14: =SUM(E15:E16) -> 1,273 | F14: =SUM(F15:F16) -> 969 | G14: 16 | H14: 21 | I14: 268 | J14: 170 | K14: 13 | L14: 9 | M14: 30 | N14: 24 | O14: 68 | P14: 61 | Q14: 0 | R14: 0 | S14: 0 | T14: 0 | U14: 0 | V14: 0 | W14: 0 | X14: 0 | Y14: 0 | Z14: 0 | AA14: 1 | AB14: 1 | AC14: 소계 | AD14: 5,325 | AE14: =SUM(AE15:AE16) -> 6,902 | AF14: 1,577 | AG14: 30%
C15: 08~11 | D15: 1,198 | E15: 312 | F15: 556 | G15: 10 | H15: 12 | I15: 83 | J15: 94 | K15: 6 | L15: 8 | M15: 19 | N15: 23 | O15: 36 | P15: 39 | Q15: 0 | R15: 0 | S15: 0 | T15: 0 | U15: 0 | V15: 0 | W15: 0 | X15: 0 | Y15: 0 | Z15: 0 | AA15: 0 | AB15: 0 | AC15: 주간 (07~19) | AD15: 4,223 | AE15: 5,827 | AF15: 1,604
C16: 15~18 | D16: 1,726 | E16: 961 | F16: 413 | G16: 6 | H16: 9 | I16: 185 | J16: 76 | K16: 7 | L16: 1 | M16: 11 | N16: 1 | O16: 32 | P16: 22 | Q16: 0 | R16: 0 | S16: 0 | T16: 0 | U16: 0 | V16: 0 | W16: 0 | X16: 0 | Y16: 0 | Z16: 0 | AA16: 1 | AB16: 1 | AC16: 야간 (19~07) | AD16: 1,102 | AE16: 1,075 | AF16: -27
A17: 863-01 (일반77<=>서촌) 이목마을승강장 | C17: 소계 | D17: 284 | E17: =SUM(E18:E19) -> 103 | F17: =SUM(F18:F19) -> 116 | G17: 5 | H17: 6 | I17: 25 | J17: 25 | K17: 1 | L17: 1 | M17: 1 | N17: 1 | O17: 0 | P17: 0 | Q17: 0 | R17: 0 | S17: 0 | T17: 0 | U17: 0 | V17: 0 | W17: 0 | X17: 0 | Y17: 0 | Z17: 0 | AA17: 0 | AB17: 0 | AC17: 소계 | AD17: 439 | AE17: =SUM(AE18:AE19) -> 634 | AF17: 195 | AG17: 44%
C18: 08~11 | D18: 98 | E18: 32 | F18: 43 | G18: 2 | H18: 3 | I18: 4 | J18: 12 | K18: 0 | L18: 0 | M18: 1 | N18: 1 | O18: 0 | P18: 0 | Q18: 0 | R18: 0 | S18: 0 | T18: 0 | U18: 0 | V18: 0 | W18: 0 | X18: 0 | Y18: 0 | Z18: 0 | AA18: 0 | AB18: 0 | AC18: 주간 (07~19) | AD18: 352 | AE18: 491 | AF18: 139
C19: 15~18 | D19: 186 | E19: 71 | F19: 73 | G19: 3 | H19: 3 | I19: 21 | J19: 13 | K19: 1 | L19: 1 | M19: 0 | N19: 0 | O19: 0 | P19: 0 | Q19: 0 | R19: 0 | S19: 0 | T19: 0 | U19: 0 | V19: 0 | W19: 0 | X19: 0 | Y19: 0 | Z19: 0 | AA19: 0 | AB19: 0 | AC19: 야간 (19~07) | AD19: 87 | AE19: 143 | AF19: 56
A20: 863-04 (소라<=>서촌) 대옥마을승강장 | C20: 소계 | D20: 309 | E20: =SUM(E21:E22) -> 88 | F20: =SUM(F21:F22) -> 95 | G20: 11 | H20: 9 | I20: 47 | J20: 37 | K20: 1 | L20: 1 | M20: 0 | N20: 0 | O20: 10 | P20: 10 | Q20: 0 | R20: 0 | S20: 0 | T20: 0 | U20: 0 | V20: 0 | W20: 0 | X20: 0 | Y20: 0 | Z20: 0 | AA20: 0 | AB20: 0 | AC20: 소계 | AD20: 754 | AE20: =SUM(AE21:AE22) -> 780 | AF20: 26 | AG20: 3%
C21: 08~11 | D21: 132 | E21: 40 | F21: 37 | G21: 5 | H21: 4 | I21: 21 | J21: 23 | K21: 1 | L21: 1 | M21: 0 | N21: 0 | O21: 0 | P21: 0 | Q21: 0 | R21: 0 | S21: 0 | T21: 0 | U21: 0 | V21: 0 | W21: 0 | X21: 0 | Y21: 0 | Z21: 0 | AA21: 0 | AB21: 0 | AC21: 주간 (07~19) | AD21: 608 | AE21: 679 | AF21: 71
C22: 15~18 | D22: 177 | E22: 48 | F22: 58 | G22: 6 | H22: 5 | I22: 26 | J22: 14 | K22: 0 | L22: 0 | M22: 0 | N22: 0 | O22: 10 | P22: 10 | Q22: 0 | R22: 0 | S22: 0 | T22: 0 | U22: 0 | V22: 0 | W22: 0 | X22: 0 | Y22: 0 | Z22: 0 | AA22: 0 | AB22: 0 | AC22: 야간 (19~07) | AD22: 146 | AE22: 101 | AF22: -45
Z28: `

Sheet 시도집계표
A1: 2021년도 도로 교통량 조사 결과 집계표(지방도 및 국가지원지방도)
A2: 노선별 | C2: 2021년 교통량 조사결과 (차종별 6시간) | AC2: 24시간 총조사결과
C3: 시간 | D3: 계 | E3: 1종 (승용) | G3: 2종 (버스) | I3: 3종 (소형트럭) | K3: 4종 (소형트럭) | M3: 5종 (중형트럭) | O3: 6종 (중형트럭) | Q3: 7종 (중형트럭) | S3: 8종 (대형트럭) | U3: 9종 (대형트럭) | W3: 10종 (대형트럭) | Y3: 11종 (대형트럭) | AA3: 12종 (대형트럭) | AC3: 시간 | AD3: 2020년 | AE3: 2021년 | AF3: 증감 | AG3: 증감율
E4: 상행 | F4: 하행 | G4: 상행 | H4: 하행 | I4: 상행 | J4: 하행 | K4: 상행 | L4: 하행 | M4: 상행 | N4: 하행 | O4: 상행 | P4: 하행 | Q4: 상행 | R4: 하행 | S4: 상행 | T4: 하행 | U4: 상행 | V4: 하행 | W4: 상행 | X4: 하행 | Y4: 상행 | Z4: 하행 | AA4: 상행 | AB4: 하행
A5: 합 계 (18지점) | C5: 합계 | D5: =SUM(D6:D7) -> 14,654 | E5: =SUM(E6:E7) -> 5,289 | F5: =SUM(F6:F7) -> 4,766 | G5: 185 | H5: 229 | I5: 1,516 | J5: 1,503 | K5: 198 | L5: 119 | M5: 116 | N5: 147 | O5: 239 | P5: 201 | Q5: 47 | R5: 44 | S5: 4 | T5: 3 | U5: 0 | V5: 1 | W5: 4 | X5: 16 | Y5: 6 | Z5: 8 | AA5: 10 | AB5: 3 | AC5: 합계 | AD5: 31,398 | AE5: =SUM(AE6:AE7) -> 31,652 | AF5: =AE5-AD5 -> 254 | AG5: =AF5/AD5 -> 0.81%
C6: 주간 | D6: =SUM(E6:AB6) -> 7,026 | E6: =SUM(E9,E12,E15,E18,E21,E24,E27,E30,E33,E36,E39,E42,E45,E48,E51,E54,E57,E60) -> 2,379 | F6: 2,292 | G6: 106 | H6: 143 | I6: 720 | J6: 745 | K6: 88 | L6: 62 | M6: 74 | N6: =SUM(N9,N12,N15,N18,N21,N24,N27,N30,N33,N36,N39,N42,N45,N48,N51,N54,N57,N60) -> 85 | O6: 130 | P6: 124 | Q6: 19 | R6: 31 | S6: 3 | T6: 3 | U6: 0 | V6: 1 | W6: 2 | X6: 10 | Y6: 5 | Z6: 2 | AA6: 2 | AB6: 0 | AC6: 주간 07~19 | AD6: 26,411 | AE6: =SUM(AE9,AE12,AE15,AE18,AE21,AE24,AE27,AE30,AE33,AE36,AEB39,AE42,AE45,AE48,AE51,AE54,AE57,AE60) -> 26,327 | AF6: =AE6-AD6 -> -84 | AG6: =AF6/AD6 -> -0%
C7: 야간 | D7: =SUM(E7:AB7) -> 7,628 | E7: =SUM(E10,E13,E16,E19,E22,E25,E28,E31,E34,E37,E40,E43,E46,E49,E52,E55,E58,E61) -> 2,910 | F7: 2,474 | G7: 79 | H7: 86 | I7: 796 | J7: 758 | K7: 110 | L7: 57 | M7: 42 | N7: =SUM(N10,N13,N16,N19,N22,N25,N28,N31,N34,N37,N40,N43,N46,N49,N52,N55,N58,N61) -> 62 | O7: 109 | P7: 77 | Q7: 28 | R7: 13 | S7: 1 | T7: 0 | U7: 0 | V7: 0 | W7: 2 | X7: 6 | Y7: 1 | Z7: 6 | AA7: 8 | AB7: 3 | AC7: 야간 19~07 | AD7: 4,987 | AE7: =SUM(AE10,AE13,AE16,AE19,AE22,AE25,AE28,AE31,AE34,AE37,AE40,AE43,AE46,AE49,AE52,AE55,AE58,AE61) -> 5,325 | AF7: 338 | AG7: =AF7/AD7 -> 7%
A8: 1호 | B8: 36-02-01 (임포-죽포) 영농조합법인 앞 | C8: 소계 | D8: =SUM(E8:AB8) -> 1,221 | E8: =SUM(E9:E10) -> 418 | F8: 480 | G8: 12 | H8: 23 | I8: 111 | J8: 162 | K8: 9 | L8: 2 | M8: 1 | N8: =SUM(N9:N10) -> 1 | O8: 0 | P8: 0 | Q8: 1 | R8: 1 | S8: 0 | T8: 0 | U8: 0 | V8: 0 | W8: 0 | X8: 0 | Y8: 0 | Z8: 0 | AA8: 0 | AB8: 0 | AC8: 소계 | AD8: 2,665 | AE8: =SUM(AE9:AE10) -> 2,756 | AF8: 91 | AG8: 3%
C9: 08~11 | D9: =SUM(E9:AB9) -> 548 | E9: 117 | F9: 244 | G9: 7 | H9: 19 | I9: 46 | J9: 112 | K9: 3 | L9: 0 | AC9: 주간 07~19 | AD9: 2,207 | AE9: 2,330 | AF9: 123 | AG9: 6%
C10: 15~18 | D10: =SUM(E10:AB10) -> 673 | E10: 301 | F10: 236 | G10: 5 | H10: 4 | I10: 65 | J10: 50 | K10: 6 | L10: 2 | M10: 1 | N10: 1 | O10: 0 | P10: 0 | Q10: 1 | R10: 1 | AC10: 야간 19~07 | AD10: 458 | AE10: 426 | AF10: -32 | AG10: -7%
A11: 2호 | B11: 36-02-02 (신기⇔대율) 부영슈퍼 앞 | C11: 소계 | D11: =SUM(E11:AB11) -> 231 | E11: =SUM(E12:E13) -> 74 | F11: =SUM(F12:F13) -> 62 | G11: 9 | H11: 13 | I11: 39 | J11: 34 | K11: 0 | L11: 0 | M11: 0 | N11: 0 | O11: 0 | P11: 0 | Q11: 0 | R11: 0 | S11: 0 | T11: 0 | U11: 0 | V11: 0 | W11: 0 | X11: 0 | Y11: 0 | Z11: 0 | AA11: 0 | AB11: 0 | AC11: 소계 | AD11: 663 | AE11: =SUM(AE12:AE13) -> 551 | AF11: -112 | AG11: -17%
C12: 08~11 | D12: =SUM(E12:AB12) -> 111 | E12: 29 | F12: 26 | G12: 6 | H12: 7 | I12: 22 | J12: 21 | AC12: 주간 07~19 | AD12: 541 | AE12: 491 | AF12: -50 | AG12: -9%
C13: 15~18 | D13: =SUM(E13:AB13) -> 120 | E13: 45 | F13: 36 | G13: 3 | H13: 6 | I13: 17 | J13: 13 | AC13: 야간 19~07 | AD13: 122 | AE13: 60 | AF13: -62 | AG13: -51%
A14: 4호 | B14: 36-02-03 (진두-하동) 나폴리팬션 앞 | C14: 소계 | D14: 1,072 | E14: =SUM(E15:E16) -> 530 | F14: =SUM(F15:F16) -> 340 | G14: 8 | H14: 8 | I14: 104 | J14: 67 | K14: 7 | L14: 6 | M14: 1 | N14: 1 | O14: 0 | P14: 0 | Q14: 0 | R14: 0 | S14: 0 | T14: 0 | U14: 0 | V14: 0 | W14: 0 | X14: 0 | Y14: 0 | Z14: 0 | AA14: 0 | AB14: 0 | AC14: 소계 | AD14: 1,407 | AE14: =SUM(AE15:AE16) -> 2,973 | AF14: 1,566 | AG14: 111%
C15: 08~11 | D15: 433 | E15: 181 | F15: 129 | G15: 5 | H15: 5 | I15: 59 | J15: 44 | K15: 4 | L15: 5 | M15: 1 | N15: 0 | AC15: 주간 07~19 | AD15: 1,014 | AE15: 2,100 | AF15: 1,086 | AG15: =AF15/AD15 -> 107%
C16: 15~18 | D16: 639 | E16: 349 | F16: 211 | G16: 3 | H16: 3 | I16: 45 | J16: 23 | K16: 3 | L16: 1 | M16: 0 | N16: 1 | AC16: 야간 19~07 | AD16: 393 | AE16: 873 | AF16: 480 | AG16: 122%
A17: 5호 | B17: 36-02-04 (송시-도실) 돌산마트 앞 | C17: 소계 | D17: 1,527 | E17: =SUM(E18:E19) -> 587 | F17: =SUM(F18:F19) -> 429 | G17: 8 | H17: 22 | I17: 163 | J17: 226 | K17: 20 | L17: 9 | M17: 4 | N17: 10 | O17: 28 | P17: 17 | Q17: 0 | R17: 2 | S17: 0 | T17: 0 | U17: 0 | V17: 0 | W17: 1 | X17: 0 | Y17: 1 | Z17: 0 | AA17: 0 | AB17: 0 | AC17: 소계 | AD17: 3,813 | AE17: =SUM(AE18:AE19) -> 3,626 | AF17: -187 | AG17: -5%
C18: 08~11 | D18: 736 | E18: 216 | F18: 249 | G18: 6 | H18: 12 | I18: 79 | J18: 118 | K18: 12 | L18: 2 | M18: 2 | N18: 8 | O18: 16 | P18: 13 | Q18: 0 | R18: 2 | S18: 0 | T18: 0 | U18: 0 | V18: 0 | W18: 0 | X18: 0 | Y18: 1 | Z18: 0 | AA18: 0 | AB18: 0 | AC18: 주간 07~19 | AD18: 3,060 | AE18: 3,000 | AF18: -60 | AG18: -2%
C19: 15~18 | D19: 791 | E19: 371 | F19: 180 | G19: 2 | H19: 10 | I19: 84 | J19: 108 | K19: 8 | L19: 7 | M19: 2 | N19: 2 | O19: 12 | P19: 4 | Q19: 0 | R19: 0 | S19: 0 | T19: 0 | U19: 0 | V19: 0 | W19: 1 | X19: 0 | Y19: 0 | Z19: 0 | AA19: 0 | AB19: 0 | AC19: 야간 19~07 | AD19: 753 | AE19: 626 | AF19: -127 | AG19: -17%
A20: 7호 | B20: 36-02-05 (둔전-굴전) 해오름팬션 앞 | C20: 소계 | D20: 580 | E20: =SUM(E21:E22) -> 226 | F20: =SUM(F21:F22) -> 229 | G20: 6 | H20: 6 | I20: 51 | J20: 43 | K20: 1 | L20: 1 | M20: 0 | N20: 0 | O20: 9 | P20: 7 | Q20: 0 | R20: 1 | S20: 0 | T20: 0 | U20: 0 | V20: 0 | W20: 0 | X20: 0 | Y20: 0 | Z20: 0 | AA20: 0 | AB20: 0 | AC20: 소계 | AD20: 1,366 | AE20: =SUM(AE21:AE22) -> 1,391 | AF20: =AE20-AD20 -> 25 | AG20: =AF20/AD20 -> 2% | AH20: 변경
C21: 08~11 | D21: 229 | E21: 84 | F21: 75 | G21: 4 | H21: 3 | I21: 26 | J21: 27 | K21: 1 | L21: 1 | M21: 0 | N21: 0 | O21: 4 | P21: 3 | Q21: 0 | R21: 1 | S21: 0 | T21: 0 | U21: 0 | V21: 0 | W21: 0 | X21: 0 | Y21: 0 | Z21: 0 | AA21: 0 | AB21: 0 | AC21: 주간 07~19 | AD21: 1,159 | AE21: 1,157 | AF21: -2 | AG21: -0%
C22: 15~18 | D22: 351 | E22: 142 | F22: 154 | G22: 2 | H22: 3 | I22: 25 | J22: 16 | K22: 0 | L22: 0 | M22: 0 | N22: 0 | O22: 5 | P22: 4 | Q22: 0 | R22: 0 | S22: 0 | T22: 0 | U22: 0 | V22: 0 | W22: 0 | X22: 0 | Y22: 0 | Z22: 0 | AA22: 0 | AB22: 0 | AC22: 야간 19~07 | AD22: 207 | AE22: 234 | AF22: 27 | AG22: 13%
A23: 8호 | B23: 36-02-06 (풍류-내기) 유로조경 앞 | C23: 소계 | D23: 1,347 | E23: =SUM(E24:E25) -> 474 | F23: =SUM(F24:F25) -> 442 | G23: 3 | H23: 2 | I23: 184 | J23: 169 | K23: 22 | L23: 10 | M23: 13 | N23: 18 | O23: 2 | P23: 6 | Q23: 1 | R23: 1 | S23: 0 | T23: 0 | U23: 0 | V23: 0 | W23: 0 | X23: 0 | Y23: 0 | Z23: 0 | AA23: 0 | AB23: 0 | AC23: 소계 | AD23: 2,368 | AE23: =SUM(AE24:AE25) -> 2,632 | AF23: 264 | AG23: 11%
C24: 08~11 | D24: 653 | E24: 255 | F24: 185 | G24: 3 | H24: 2 | I24: 94 | J24: 82 | K24: 5 | L24: 3 | M24: 6 | N24: 9 | O24: 2 | P24: 6 | Q24: 1 | R24: 0 | AC24: 주간 07~19 | AD24: 2,105 | AE24: 2,322 | AF24: 217 | AG24: 10%
C25: 15~18 | D25: 694 | E25: 219 | F25: 257 | G25: 0 | H25: 0 | I25: 90 | J25: 87 | K25: 17 | L25: 7 | M25: 7 | N25: 9 | O25: 0 | P25: 0 | Q25: 0 | R25: 1 | AC25: 야간 19~07 | AD25: 263 | AE25: 310 | AF25: 47 | AG25: 18%
A26: 10호 | B26: 36-02-07 (달천-대포) 방앗간가든 앞 | C26: 소계 | D26: 599 | E26: =SUM(E27:E28) -> 165 | F26: =SUM(F27:F28) -> 179 | G26: 1 | H26: 0 | I26: 90 | J26: 89 | K26: 20 | L26: 12 | M26: 12 | N26: 6 | O26: 8 | P26: 7 | Q26: 6 | R26: 4 | S26: 0 | T26: 0 | U26: 0 | V26: 0 | W26: 0 | X26: 0 | Y26: 0 | Z26: 0 | AA26: 0 | AB26: 0 | AC26: 소계 | AD26: 1,261 | AE26: =SUM(AE27:AE28) -> 1,184 | AF26: -77 | AG26: -6%
C27: 08~11 | D27: 261 | E27: 69 | F27: 61 | G27: 0 | H27: 0 | I27: 44 | J27: 46 | K27: 8 | L27: 8 | M27: 5 | N27: 5 | O27: 4 | P27: 5 | Q27: 3 | R27: 3 | AC27: 주간 07~19 | AD27: 1,168 | AE27: 1,050 | AF27: -118 | AG27: -10%
C28: 15~18 | D28: 338 | E28: 96 | F28: 118 | G28: 1 | H28: 0 | I28: 46 | J28: 43 | K28: 12 | L28: 4 | M28: 7 | N28: 1 | O28: 4 | P28: 2 | Q28: 3 | R28: 1 | AC28: 야간 19~07 | AD28: 93 | AE28: 134 | AF28: 41 | AG28: 44%
A29: 11호 | B29: 36-02-08 (덕양-연화) 가나건축자재 앞 | C29: 소계 | D29: 709 | E29: =SUM(E30:E31) -> 165 | F29: =SUM(F30:F31) -> 109 | G29: 12 | H29: 8 | I29: 53 | J29: 38 | K29: 28 | L29: 10 | M29: 47 | N29: 50 | O29: 83 | P29: 99 | Q29: 0 | R29: 0 | S29: 0 | T29: 0 | U29: 0 | V29: 0 | W29: 1 | X29: 1 | Y29: 2 | Z29: 3 | AA29: 0 | AB29: 0 | AC29: 소계 | AD29: 1,686 | AE29: =SUM(AE30:AE31) -> 1,764 | AF29: 78 | AG29: =AF29/AD29 -> 5%
C30: 08~11 | D30: 409 | E30: 113 | F30: 54 | G30: 9 | H30: 4 | I30: 35 | J30: 14 | K30: 16 | L30: 2 | M30: 35 | N30: 35 | O30: 50 | P30: 41 | Q30: 0 | R30: 0 | S30: 0 | T30: 0 | U30: 0 | V30: 0 | W30: 0 | X30: 0 | Y30: 1 | Z30: 0 | AA30: 0 | AB30: 0 | AC30: 주간 07~19 | AD30: 1,554 | AE30: 1,550 | AF30: -4 | AG30: =AF30/AD30 -> -0%
C31: 15~18 | D31: 300 | E31: 52 | F31: 55 | G31: 3 | H31: 4 | I31: 18 | J31: 24 | K31: 12 | L31: 8 | M31: 12 | N31: 15 | O31: 33 | P31: 58 | Q31: 0 | R31: 0 | S31: 0 | T31: 0 | U31: 0 | V31: 0 | W31: 1 | X31: 1 | Y31: 1 | Z31: 3 | AA31: 0 | AB31: 0 | AC31: 야간 19~07 | AD31: 132 | AE31: 214 | AF31: 82 | AG31: =AF31/AD31 -> 62%
A32: 12호 | B32: 36-02-09 (달천-신흥) | C32: 소계 | D32: 287 | E32: =SUM(E33:E34) -> 96 | F32: =SUM(F33:F34) -> 126 | G32: 7 | H32: 5 | I32: 24 | J32: 23 | K32: 3 | L32: 3 | M32: 0 | N32: 0 | O32: 0 | P32: 0 | Q32: 0 | R32: 0 | S32: 0 | T32: 0 | U32: 0 | V32: 0 | W32: 0 | X32: 0 | Y32: 0 | Z32: 0 | AA32: 0 | AB32: 0 | AC32: 소계 | AD32: 646 | AE32: =SUM(AE33:AE34) -> 636 | AF32: -10 | AG32: -2%
C33: 08~11 | D33: 109 | E33: 37 | F33: 46 | G33: 3 | H33: 2 | I33: 12 | J33: 6 | K33: 0 | L33: 3 | AC33: 주간 07~19 | AD33: 560 | AE33: 564 | AF33: 4 | AG33: 1%
C34: 15~18 | D34: 178 | E34: 59 | F34: 80 | G34: 4 | H34: 3 | I34: 12 | J34: 17 | K34: 3 | L34: 0 | AC34: 야간 19~07 | AD34: 86 | AE34: 72 | AF34: -14 | AG34: -16%
A35: 14호 | B35: 36-02-10 (신풍-애양) 구암리사무소 앞 | C35: 소계 | D35: 765 | E35: =SUM(E36:E37) -> 317 | F35: =SUM(F36:F37) -> 301 | G35: 14 | H35: 13 | I35: 55 | J35: 55 | K35: 5 | L35: 3 | M35: 1 | N35: 1 | O35: 0 | P35: 0 | Q35: 0 | R35: 0 | S35: 0 | T35: 0 | U35: 0 | V35: 0 | W35: 0 | X35: 0 | Y35: 0 | Z35: 0 | AA35: 0 | AB35: 0 | AC35: 소계 | AD35: 1,465 | AE35: =SUM(AE36:AE37) -> 1,600 | AF35: 135 | AG35: 9%
C36: 08~11 | D36: 441 | E36: 205 | F36: 150 | G36: 6 | H36: 5 | I36: 42 | J36: 28 | K36: 2 | L36: 3 | AC36: 주간 07~19 | AD36: 1,288 | AE36: 1,422 | AF36: 134 | AG36: 10%
C37: 15~18 | D37: 324 | E37: 112 | F37: 151 | G37: 8 | H37: 8 | I37: 13 | J37: 27 | K37: 3 | L37: 0 | M37: 1 | N37: 1 | AC37: 야간 19~07 | AD37: 177 | AE37: 178 | AF37: 1 | AG37: 1%
A38: 15호 | B38: 36-02-11 (조화-연화) 하나라마트 앞 | C38: 소계 | D38: 1,030 | E38: =SUM(E39:E40) -> 423 | F38: =SUM(F39:F40) -> 282 | G38: 38 | H38: 53 | I38: 103 | J38: 115 | K38: 5 | L38: 4 | M38: 1 | N38: 0 | O38: 0 | P38: 1 | Q38: 1 | R38: 1 | S38: 1 | T38: 1 | U38: 0 | V38: 0 | W38: 0 | X38: 0 | Y38: 1 | Z38: 0 | AA38: 0 | AB38: 0 | AC38: 소계 | AD38: 2,255 | AE38: =SUM(AE39:AE40) -> 2,256 | AF38: 1 | AG38: 0%
C39: 08~11 | D39: 445 | E39: 243 | F39: 128 | G39: 23 | H39: 42 | I39: 1 | J39: 0 | K39: 2 | L39: 2 | M39: 1 | N39: 0 | O39: 0 | P39: 1 | Q39: 0 | R39: 0 | S39: 0 | T39: 1 | U39: 0 | V39: 0 | W39: 0 | X39: 0 | Y39: 1 | Z39: 0 | AA39: 0 | AB39: 0 | AC39: 주간 07~19 | AD39: 1,913 | AE39: 1,971 | AF39: 58 | AG39: 3%
C40: 15~18 | D40: 585 | E40: 180 | F40: 154 | G40: 15 | H40: 11 | I40: 102 | J40: 115 | K40: 3 | L40: 2 | M40: 0 | N40: 0 | O40: 0 | P40: 0 | Q40: 1 | R40: 1 | S40: 1 | T40: 0 | U40: 0 | V40: 0 | W40: 0 | X40: 0 | Y40: 0 | Z40: 0 | AA40: 0 | AB40: 0 | AC40: 야간 19~07 | AD40: 342 | AE40: 285 | AF40: -57 | AG40: -17%
A41: 16호 | B41: 36-02-12 (상봉-여흥) 월산리사무소 앞 | C41: 소계 | D41: 1,827 | E41: =SUM(E42:E43) -> 510 | F41: =SUM(F42:F43) -> 506 | G41: 18 | H41: 15 | I41: 259 | J41: 219 | K41: 42 | L41: 37 | M41: 29 | N41: 30 | O41: 31 | P41: 22 | Q41: 35 | R41: 32 | S41: 3 | T41: 2 | U41: 0 | V41: 1 | W41: 2 | X41: 15 | Y41: 2 | Z41: 4 | AA41: 10 | AB41: 3 | AC41: 소계 | AD41: 3,825 | AE41: =SUM(AE42:AE43) -> 3,988 | AF41: 163 | AG41: 4%
C42: 08~11 | D42: 910 | E42: 269 | F42: 230 | G42: 8 | H42: 9 | I42: 128 | J42: 105 | K42: 13 | L42: 18 | M42: 17 | N42: 23 | O42: 14 | P42: 14 | Q42: 15 | R42: 23 | S42: 3 | T42: 2 | U42: 0 | V42: 1 | W42: 2 | X42: 10 | Y42: 2 | Z42: 2 | AA42: 2 | AB42: 0 | AC42: 주간 07~19 | AD42: 3,253 | AE42: 3,478 | AF42: 225 | AG42: 7%
C43: 15~18 | D43: 917 | E43: 241 | F43: 276 | G43: 10 | H43: 6 | I43: 131 | J43: 114 | K43: 29 | L43: 19 | M43: 12 | N43: 7 | O43: 17 | P43: 8 | Q43: 20 | R43: 9 | S43: 0 | T43: 0 | U43: 0 | V43: 0 | W43: 0 | X43: 5 | Y43: 0 | Z43: 2 | AA43: 8 | AB43: 3 | AC43: 야간 19~07 | AD43: 572 | AE43: 510 | AF43: -62 | AG43: -11%
A44: 17호 | B44: 36-02-13 (나진-창무) 화양중 앞 | C44: 소계 | D44: 377 | E44: =SUM(E45:E46) -> 94 | F44: =SUM(F45:F46) -> 180 | G44: 8 | H44: 12 | I44: 16 | J44: 51 | K44: 3 | L44: 7 | M44: 0 | N44: 1 | O44: 0 | P44: 1 | Q44: 3 | R44: 0 | S44: 0 | T44: 0 | U44: 0 | V44: 0 | W44: 0 | X44: 0 | Y44: 0 | Z44: 1 | AA44: 0 | AB44: 0 | AC44: 소계 | AD44: 817 | AE44: =SUM(AE45:AE46) -> 908 | AF44: 91 | AG44: 11%
C45: 08~11 | D45: 194 | E45: 56 | F45: 90 | G45: 3 | H45: 4 | I45: 8 | J45: 22 | K45: 3 | L45: 7 | M45: 0 | N45: 1 | AC45: 주간 07~19 | AD45: 736 | AE45: 776 | AF45: 40 | AG45: 5%
C46: 15~18 | D46: 183 | E46: 38 | F46: 90 | G46: 5 | H46: 8 | I46: 8 | J46: 29 | K46: 0 | L46: 0 | M46: 0 | N46: 0 | O46: 0 | P46: 1 | Q46: 3 | R46: 0 | S46: 0 | T46: 0 | U46: 0 | V46: 0 | W46: 0 | X46: 0 | Y46: 0 | Z46: 1 | AA46: 0 | AB46: 0 | AC46: 야간 19~07 | AD46: 81 | AE46: 132 | AF46: 51 | AG46: 63%
A47: 18호 | B47: 36-02-14 (용주-소호) 용주마을 입구 | C47: 소계 | D47: 2,192 | E47: =SUM(E48:E49) -> 921 | F47: =SUM(F48:F49) -> 830 | G47: 12 | H47: 14 | I47: 136 | J47: 102 | K47: 18 | L47: 2 | M47: 7 | N47: 29 | O47: 78 | P47: 41 | Q47: 0 | R47: 2 | S47: 0 | T47: 0 | U47: 0 | V47: 0 | W47: 0 | X47: 0 | Y47: 0 | Z47: 0 | AA47: 0 | AB47: 0 | AC47: 소계 | AD47: 5,118 | AE47: =SUM(AE48:AE49) -> 5,343 | AF47: 225 | AG47: 4%
C48: 08~11 | D48: 1,115 | E48: 364 | F48: 487 | G48: 8 | H48: 8 | I48: 69 | J48: 74 | K48: 9 | L48: 2 | M48: 7 | N48: 4 | O48: 40 | P48: 41 | Q48: 0 | R48: 2 | AC48: 주간 07~19 | AD48: 4,146 | AE48: 4,365 | AF48: 219 | AG48: 5%
C49: 15~18 | D49: 1,077 | E49: 557 | F49: 343 | G49: 4 | H49: 6 | I49: 67 | J49: 28 | K49: 9 | L49: 0 | M49: 0 | N49: 25 | O49: 38 | P49: 0 | AC49: 야간 19~07 | AD49: 972 | AE49: 978 | AF49: 6 | AG49: 1%
A50: 21호 | B50: 36-02-15 (세포-서촌) 산전교회 인근 | C50: 소계 | D50: 149 | E50: =SUM(E51:E52) -> 50 | F50: =SUM(F51:F52) -> 54 | G50: 5 | H50: 7 | I50: 14 | J50: 14 | K50: 2 | L50: 3 | M50: 0 | N50: 0 | O50: 0 | P50: 0 | Q50: 0 | R50: 0 | S50: 0 | T50: 0 | U50: 0 | V50: 0 | W50: 0 | X50: 0 | Y50: 0 | Z50: 0 | AA50: 0 | AB50: 0 | AC50: 소계 | AD50: 317 | AE50: =SUM(AE51:AE52) -> 331 | AF50: 14 | AG50: 4% | AH50: 신규
C51: 08~11 | D51: 69 | E51: 17 | F51: 26 | G51: 3 | H51: 3 | I51: 7 | J51: 9 | K51: 2 | L51: 2 | AC51: 주간 07~19 | AD51: 281 | AE51: 288 | AF51: 7 | AG51: 2%
C52: 15~18 | D52: 80 | E52: 33 | F52: 28 | G52: 2 | H52: 4 | I52: 7 | J52: 5 | K52: 0 | L52: 1 | AC52: 야간 19~07 | AD52: 36 | AE52: 43 | AF52: 7 | AG52: 19%
A53: 20호 | B53: 36-02-16 (우학-송고) 우실경로당 앞 | C53: 소계 | D53: 251 | E53: =SUM(E54:E55) -> 78 | F53: =SUM(F54:F55) -> 74 | G53: 15 | H53: 19 | I53: 27 | J53: 26 | K53: 7 | L53: 5 | M53: 0 | N53: 0 | O53: 0 | P53: 0 | Q53: 0 | R53: 0 | S53: 0 | T53: 0 | U53: 0 | V53: 0 | W53: 0 | X53: 0 | Y53: 0 | Z53: 0 | AA53: 0 | AB53: 0 | AC53: 소계 | AD53: 603 | AE53: =SUM(AE54:AE55) -> 549 | AF53: -54 | AG53: -9%
C54: 08~11 | D54: 106 | E54: 41 | F54: 29 | G54: 7 | H54: 12 | I54: 7 | J54: 4 | K54: 3 | L54: 3 | AC54: 주간 07~19 | AD54: 506 | AE54: 463 | AF54: -43 | AG54: -8%
C55: 15~18 | D55: 145 | E55: 37 | F55: 45 | G55: 8 | H55: 7 | I55: 20 | J55: 22 | K55: 4 | L55: 2 | AC55: 야간 19~07 | AD55: 97 | AE55: 86 | AF55: -11 | AG55: -11%
A56: 6호 | B56: 36-02-17 (호령-신흥) 개도주조장 앞 | C56: 소계 | D56: 238 | E56: =SUM(E57:E58) -> 85 | F56: =SUM(F57:F58) -> 60 | G56: 1 | H56: 1 | I56: 52 | J56: 39 | K56: 0 | L56: 0 | M56: 0 | N56: 0 | O56: 0 | P56: 0 | Q56: 0 | R56: 0 | S56: 0 | T56: 0 | U56: 0 | V56: 0 | W56: 0 | X56: 0 | Y56: 0 | Z56: 0 | AA56: 0 | AB56: 0 | AC56: 소계 | AD56: 530 | AE56: =SUM(AE57:AE58) -> 570 | AF56: 40 | AG56: 8%
C57: 08~11 | D57: 111 | E57: 37 | F57: 32 | G57: 0 | H57: 0 | I57: 24 | J57: 18 | AC57: 주간 07~19 | AD57: 410 | AE57: 487 | AF57: 77 | AG57: 19%
C58: 15~18 | D58: 127 | E58: 48 | F58: 28 | G58: 1 | H58: 1 | I58: 28 | J58: 21 | AC58: 야간 19~07 | AD58: 120 | AE58: 83 | AF58: -37 | AG58: -31%
A59: 22호 | B59: 36-02-18 (거문-죽촌) 삼호교횟집 앞 | C59: 소계 | D59: 252 | E59: =SUM(E60:E61) -> 76 | F59: =SUM(F60:F61) -> 83 | G59: 8 | H59: 8 | I59: 35 | J59: 31 | K59: 6 | L59: 5 | M59: 0 | N59: 0 | O59: 0 | P59: 0 | Q59: 0 | R59: 0 | S59: 0 | T59: 0 | U59: 0 | V59: 0 | W59: 0 | X59: 0 | Y59: 0 | Z59: 0 | AA59: 0 | AB59: 0 | AC59: 소계 | AD59: 593 | AE59: =SUM(AE60:AE61) -> 565 | AF59: -28 | AG59: -5%
C60: 08~11 | D60: 146 | E60: 46 | F60: 51 | G60: 5 | H60: 6 | I60: 17 | J60: 15 | K60: 5 | L60: 1 | R60: 0 | S60: 0 | T60: 0 | U60: 0 | V60: 0 | W60: 0 | X60: 0 | Y60: 0 | Z60: 0 | AA60: 0 | AB60: 0 | AC60: 주간 07~19 | AD60: 510 | AE60: 484 | AF60: -26 | AG60: -5%
C61: 15~18 | D61: 106 | E61: 30 | F61: 32 | G61: 3 | H61: 2 | I61: 18 | J61: 16 | K61: 1 | L61: 4 | R61: 0 | S61: 0 | T61: 0 | U61: 0 | V61: 0 | W61: 0 | X61: 0 | Y61: 0 | Z61: 0 | AA61: 0 | AB61: 0 | AC61: 야간 19~07 | AD61: 83 | AE61: 81 | AF61: -2 | AG61: -2%
